Cogmind - Beta 15 @@@ ROGUE MODE // 2025.07.28 @ 02:12:18 // AFD2020/Player2 Player: bugsniper Result: Destroyed by Y-45 Defender with Beam Rifle Performance ------------- Evolutions (0) 0 Regions Visited (2) 400 Robots Destroyed (16) 80 Value Destroyed (418) 418 Prototype IDs (3) 60 Alien Tech Used (0) 0 Bonus (52) 52 TOTAL SCORE: 1010 Bonus ------- Follower Combat Kills 214 Friendly Fire -162 Cogmind --------- Core Integrity 0/250 Matter 283/300 Energy 250/250 System Corruption 0% Temperature Cool (9) Movement Treading (160) Location -10/Subcaves Parts ------- > --- POWER (1) -------- Ion Engine > --- PROPULSION (2) --- Light Treads Light Treads > --- UTILITY (2) ------ Small Storage Unit Structural Scanner > --- WEAPON (2) ------- Light Cannon Light Cannon > --- INVENTORY (8) ---- Light Ion Engine Aluminum Leg Aluminum Leg Improved Terrain Scanner EM Pulse Gun Subdweller Beam Cannon Light Cannon Light Cannon Peak State ------------ > --- POWER ------------ Ion Engine > --- PROPULSION ------- Light Treads Light Treads > --- UTILITY ---------- Improved Heat Sink Small Storage Unit > --- WEAPON ----------- Small Laser Small Laser > --- INVENTORY -------- Light Ion Engine Aluminum Leg Aluminum Leg Wheel Wheel [Rating: 9] Favorites ----------- Power Ion Engine Engine Ion Engine Propulsion Light Treads Treads Light Treads Leg Aluminum Leg Utility Small Storage Unit Device Structural Scanner Storage Small Storage Unit Weapon Light Cannon Energy Gun Small Laser Ballistic Cannon Light Cannon Build | -11 -10 -10 ------- Run | Yrd Mat Sub Slots Evolved . | . . . Power . | . . . Propulsion . | . . . Utility . | . . . Weapon . | . . . Parts Attached 10 | . 10 . Power . | . . . Engine . | . . . Core . | . . . Reactor . | . . . Propulsion 3 | . 3 . Treads 3 | . 3 . Leg . | . . . Wheel . | . . . Hover . | . . . Flight . | . . . Utility 3 | . 3 . Device 3 | . 3 . Storage . | . . . Processor . | . . . Hackware . | . . . Protection . | . . . Artifact . | . . . Weapon 4 | . 4 . Energy Gun 2 | . 2 . Energy Cannon . | . . . Ballistic Gun . | . . . Ballistic Cannon 2 | . 2 . Launcher . | . . . Special Weapon . | . . . Impact Weapon . | . . . Slashing Weapon . | . . . Piercing Weapon . | . . . Special Melee Weapon . | . . . Unidentified Prototypes . | . . . Parts Lost . | . . . Power . | . . . Propulsion . | . . . Utility . | . . . Weapon . | . . . Highest Loss Streak . | . . . To Critical Strikes . | . . . Average Backups 7 | . 7 7 Power 1 | . 1 1 Propulsion 3 | . 4 2 Utility . | . . 1 Weapon 2 | . 1 3 Tool/Special . | . . . Unused Backups 17 | . 8 9 Power 2 | . 1 1 Propulsion 7 | . 2 5 Utility 1 | . 1 . Weapon 7 | . 4 3 Tool/Special . | . . . Average Slot Usage (%) 98 | . 97 100 Engine 14 | . 14 14 Treads 27 | . 27 28 Device 13 | . 12 14 Storage 14 | . 14 14 Energy Gun 10 | . 21 . Ballistic Cannon 17 | . 6 28 Peak Build Rating 9 | . 9 8 Average Rating 8 | . 8 7 On Entrance 6 | 6 6 8 Naked Turns . | . . . Heaviest Build 17 | 12 17 17 Greatest Support 40 | 20 40 40 Greatest Overweight (x) . | . . . Average Overweight (x) . | . . . Largest Inventory Capacity 8 | . 8 8 Average Capacity 8 | . 8 8 Most Carried 8 | . 8 8 Average Carried 7 | . 7 7 Final Capacity 8 | 8 8 8 Final Carried 8 | 6 8 8 Class Distribution -------------------- 100% | Mutant Dominant Class ---------------- Mutant | -10/Materials Mutant | -10/Subcaves Resources | -11 -10 -10 ----------- Run | Yrd Mat Sub Matter Collected 475 | 200 76 199 Remotely . | . . . Salvage Created 563 | . 508 55 Parts 26 | . 24 2 Haulers Intercepted 1 | . 1 . Recyclers Shooed . | . . . Parts Field Recycled . | . . . Retrieved Matter . | . . . Parts Self-Destructed 3 | . . 3 Prevented . | . . . Kills | -11 -10 -10 ------- Run | Yrd Mat Sub Combat Hostiles Destroyed 11 | . 7 4 Guns 7 | . 7 . Cannons 4 | . . 4 Classes Destroyed 8 | . 6 2 Builder 1 | . 1 . Tunneler 1 | . 1 . Hauler 1 | . 1 . Recycler 1 | . 1 . Watcher 1 | . 1 . Swarmer 1 | . . 1 Grunt 9 | . 7 2 Subdweller 1 | . . 1 Best Kill Streak 4 | . 4 1 Combat Bots Only 3 | . 3 1 Max Kills in Single Turn 1 | . 1 1 Gunslinging . | . . . Exploded . | . . . Melee . | . . . Uniques/NPCs Destroyed . | . . . Combat | -11 -10 -10 -------- Run | Yrd Mat Sub Hostile Shots Fired 74 | . 46 28 Missed 20 | . 14 6 Hits 54 | . 32 22 Projectile 54 | . 32 22 Critical Strikes 1 | . . 1 Damage Taken 749 | . 372 377 Core 181 | . 83 98 Absorbed by Shields . | . . . Core Remaining (%) 100 | 100 . . Volleys Fired 65 | . 42 23 Largest 2 | . 2 2 Hottest 80 | . 80 60 Shots Fired 130 | . 84 46 Gun 82 | . 82 . Cannon 48 | . 2 46 Launcher . | . . . Special . | . . . Kinetic 48 | . 2 46 Thermal 74 | . 74 . Explosive . | . . . Electromagnetic 8 | . 8 . Robot Hit Streak 8 | . 8 7 Robot Miss Streak 4 | . 4 2 Penetration Max . | . . . Secondary Targets 1 | . 1 . Max Gunslinging Chain 1 | . 1 . Shots Hit Robots 74 | . 47 27 Core Hits 30 | . 24 6 Critical Kills . | . . . Critical Parts Destroyed . | . . . Critical Strikes 1 | . . 1 Blast 1 | . . 1 Melee Attacks . | . . . Impact . | . . . Slashing . | . . . Piercing . | . . . Sneak Attacks . | . . . Combat Hostiles . | . . . Follow-up Attacks . | . . . Damage Inflicted 1122 | . 576 546 Guns 559 | . 559 . Cannons 563 | . 17 546 Explosions . | . . . Melee . | . . . Ramming . | . . . Kinetic 563 | . 17 546 Thermal 507 | . 507 . Explosive . | . . . Electromagnetic 52 | . 52 . Impact . | . . . Slashing . | . . . Piercing . | . . . Highest Corruption . | . . . Average Corruption . | . . . Corruption Purged . | . . . Corruption Blocked . | . . . Overload Shots . | . . . Overflow Damage 6 | . . 6 Projectiles 6 | . . 6 Explosions . | . . . Melee . | . . . Knockbacks 3 | . . 3 Impact . | . . . Kinetic 3 | . . 3 Secondary . | . . . Self-Inflicted Damage . | . . . Shots . | . . . Rammed . | . . . Targets Rammed . | . . . Kicked . | . . . Crushed . | . . . Highest Temperature 177 | . 177 . Average Temperature 79 | . 79 . Received Heat Transfer 384 | . 201 183 Siege Activations . | . . . Martial Activations . | . . . Shielding Activations . | . . . Robots Disrupted . | . . . Combat Hostiles . | . . . Robots Corrupted . | . . . Combat Hostiles . | . . . Parts Fried . | . . . Impact Corruptions . | . . . Robots Melted . | . . . Combat Hostiles . | . . . Parts Melted 2 | . 1 1 Heat Transferred 1125 | . 1125 . Parts Sabotaged . | . . . Parts Stolen . | . . . Parts Stripped . | . . . Power Chain Reactions . | . . . Alert | -11 -10 -10 ------- Run | Yrd Mat Sub Maximum Alert Level 1 | . 1 . Low Security (%) 84 | . 84 . Level 1 15 | . 15 . Level 2 . | . . . Level 3 . | . . . Level 4 . | . . . Level 5 . | . . . High Security . | . . . Max Security . | . . . Peak Influence 245 | . 245 . Initial . | . . . Average 113 | . 113 . Influence Increases 589 | . 452 137 Destroy 0b10 Robot/C 360 | . 260 100 Destroy 0b10 Robot/NC 30 | . 30 . Destroy Leader 86 | . 66 20 Allied During Kill 100 | . 83 17 Successful Hack 13 | . 13 . Influence Decreases 589 | . 334 255 Entered New Map 58 | . . 58 Time Decay 521 | . 334 187 Lost Part 10 | . . 10 Squads Dispatched 3 | . 3 . Investigation 1 | . 1 . Extermination . | . . . Reinforcement 2 | . 2 . Assault . | . . . Garrison . | . . . Intercept . | . . . Searches Triggered . | . . . Construction Impeded . | . . . Haulers Reinforced . | . . . Active Scanning Responses . | . . . Cargo Convoy Interrupts . | . . . Stealth | -11 -10 -10 --------- Run | Yrd Mat Sub Distress Signals 1 | . 1 . Communications Jammed . | . . . Distress Signals . | . . . Times Spotted 27 | . 18 9 Peak Tracking Total 4 | . 4 3 Tactical Retreats . | . . . Traps | -11 -10 -10 ------- Run | Yrd Mat Sub Traps Triggered . | . . . Indirectly . | . . . Trap Hack Attempts . | . . . Triggered . | . . . Disarmed . | . . . Reprogrammed . | . . . Reused . | . . . Traps Extracted . | . . . Installed . | . . . Triggered . | . . . Machines | -11 -10 -10 ---------- Run | Yrd Mat Sub Machines Disabled . | . . . Max in Single Turn . | . . . Machines Repaired . | . . . Machines Dismantled . | . . . Machines Sabotaged . | . . . Overloaded Fab Kills . | . . . Hacking | -11 -10 -10 --------- Run | Yrd Mat Sub Machines Accessed 3 | . 3 . Terminals 3 | . 3 . Fabricators . | . . . Repair Stations . | . . . Recycling Units . | . . . Scanalyzers . | . . . Garrison Access . | . . . Total Hacks 11 | . 11 . Successful 7 | . 7 . Failed 4 | . 4 . Catastrophic 1 | . 1 . Database Lockouts . | . . . Manual 4 | . 4 . Terminals 11 | . 11 . Fabricators . | . . . Repair Stations . | . . . Recycling Units . | . . . Scanalyzers . | . . . Garrison Access . | . . . Terminal Hacks 6 | . 6 . Prototype ID Bank 2 | . 2 . Emergency Access Points 1 | . 1 . Terminal Index 1 | . 1 . Locate Traps 1 | . 1 . Registered Components 1 | . 1 . Fabricator Hacks . | . . . Repair Station Hacks . | . . . Recycling Unit Hacks . | . . . Scanalyzer . | . . . Garrison Access Hacks . | . . . Unauthorized Hacks 1 | . 1 . Terminals 1 | . 1 . Botnet 1 | . 1 . Fabricators . | . . . Repair Stations . | . . . Recycling Units . | . . . Scanalyzers . | . . . Garrison Access . | . . . Data Cores Recovered . | . . . Used . | . . . Hacking Detections 3 | . 3 . Full Trace Events . | . . . Feedback Events . | . . . Feedback Blocked . | . . . Robot Schematics Acquired . | . . . Robots Built . | . . . Authchips . | . . . Time . | . . . Total Robot Build Rating . | . . . Part Schematics Acquired . | . . . Parts Built . | . . . Authchips . | . . . Time . | . . . Total Part Build Rating . | . . . Parts Repaired . | . . . Time . | . . . Parts Recycled . | . . . Recycled Matter . | . . . Retrieved Matter . | . . . Retrieved Components . | . . . Parts Scanalyzed . | . . . Part Schematics Acquired . | . . . Parts Damaged . | . . . Bothacking | -11 -10 -10 ------------ Run | Yrd Mat Sub Used RIF Installer . | . . . Robots Hacked . | . . . Non-combat . | . . . Combat . | . . . Robot Hacks Applied . | . . . Relay Couplers Released . | . . . Fabnet Peak Effective % . | . . . Robots Rewired . | . . . Allies Hacked . | . . . Hacks Repelled . | . . . Allies | -11 -10 -10 -------- Run | Yrd Mat Sub Total Allies 1 | . 1 . Largest Group 1 | . 1 1 Highest-Rated Group 60 | . 59 60 Highest-Rated Ally 60 | . 59 60 Total Orders . | . . . Ally Attacks 40 | . 30 10 Total Damage 671 | . 389 282 Kills 10 | . 7 3 Allies Corrupted . | . . . Allies Melted . | . . . Intel | -11 -10 -10 ------- Run | Yrd Mat Sub Active Infowar (turns) 1178 | . 320 858 Terrain 161 | . 161 . Structural 1017 | . 159 858 Robot Analysis Total . | . . . Derelict Logs Recovered . | . . . Drone Launches . | . . . Drone Recoveries . | . . . Exploration | -11 -10 -10 ------------- Run | Yrd Mat Sub Turns Passed 1724 | . 866 858 Spaces Moved 854 | 1 417 436 Core . | . . . Treads 832 | . 396 436 Legs 22 | 1 21 . Wheels . | . . . Hover . | . . . Flight . | . . . Fastest Speed 120 | 120 120 160 Average Speed 158 | 120 157 160 Slowest Speed 160 | 120 160 160 Overloaded Moves . | . . . Propulsion Burnouts . | . . . Robots Hopped . | . . . Potential Cave-ins . | . . . Cave-ins Triggered . | . . . Exploration Rate (%) 25 | 2 58 16 Regions Visited 2 Branch Regions 1 Pre-discovered Areas . | . . . Known Exits Taken . | . . . Unknown Exits Taken 2 | 1 1 . Scrap Searched 1 | . . 1 Spaces Dug . | . . . Terrain Destroyed . | . . . Melee . | . . . Projectile . | . . . AOE . | . . . Terrain Rammed . | . . . Walls Destroyed . | . . . Machines Disabled . | . . . Actions | -11 -10 -10 --------- Run | Yrd Mat Sub Total 1094 | . 540 554 Wait 143 | . 56 87 Move 852 | . 416 436 Hop . | . . . Pick Up 11 | . 7 4 Fast Attach 3 | . 3 . Attach . | . . . Detach . | . . . Swap 7 | . 7 . Drop 13 | . 9 4 Fire 65 | . 42 23 Melee . | . . . Ram . | . . . Kick . | . . . Crush . | . . . Escape Stasis . | . . . Rewire . | . . . Trap . | . . . Miscellaneous . | . . . Route ------- -11/Scrapyard -10/Materials (discovered 3 exits: [*Mat x2] / [*Sub]) -10/Subcaves History --------- Turn | Location | Event 1 | -11/Scrapyard | Discovered new exit (range 0) 1 | -11/Scrapyard | Entered Materials 321 | -10/Materials | Build established: Mutant 439 | -10/Materials | Discovered new exit (range 8) 483 | -10/Materials | Core integrity fell below 50% 756 | -10/Materials | Discovered new exit (range 4) 835 | -10/Materials | Discovered new exit (range 6) 867 | -10/Materials | Entered Subcaves 868 | -10/Subcaves | Approached by a straggling Scientist 1338 | -10/Subcaves | A swath of the cavern ceiling suddenly collapsed 1496 | -10/Subcaves | Core integrity fell below 20% 1725 | -10/Subcaves | Destroyed by Y-45 Defender with Beam Rifle Last Messages --------------- 01557_ G-47 Trooper knocked back. 01560_ G-34 Mercenary Ion Engine blasted off. 01560_ G-34 Mercenary destroyed. 01563_ G-47 Trooper knocked back. 01567_ Aluminum Leg fries itself beyond repair. 01571_ Heat Sink fries itself beyond repair. 01575_ Destroyed Lgt. Nuclear Core. 01575_ G-47 Trooper knocked back. 01581_ G-47 Trooper destroyed. 01584_ Acquired 35 matter. 01594_ Acquired 1 matter. 01595_ Acquired 7 matter. 01597_ Acquired 5 matter. 01600_ Acquired 4 matter. 01606_ Acquired 45 matter. 01630_ Subatomizers dissect the Sub. Power Source. 01708_ Critical hit (Burn: +37). 01722_ Subatomizers dissect the Sub. Power Source. Map ----- +----------------------------------------------------+ | ????????????????????????## ####"# #"" ##??????? | | ????????????????????????# ?####""""# ###??????? | | ?????????????????????????###???####""###?????????? | | ?????????????????????????###????#### ###?????????? | | ?????????????????????????????????## ###?????????? | | ????????????????????????????????### ###????????? | | ????????????????????????????????### #######????? | | ???????????????????????????????### ######????? | | ???????????????????????????????### ##????? | | ???????????????????????????????## ### ##????? | | ???????????????????????????????## ###### ###????? | | ???????????????????????????????## #########????? | | ???????????????????????????????## ##?#####?????? | | ???????????????????????????????## ###???????????? | | ???????????????????????????????## ##########????? | | ???????????????????????????????### ##########???? | | ?????????????????????####???###### ## # ###???? | | ?????????????????????#####??##### "##???? | | ????????????????????? ###### ###???? | | ??????????????????????? ##### ## ##???? | | ??????????????????????? ##### #### ###??## | | ???????????????????????## #### ####" ##### # | | ???????????????????????## #### ####""" ### # | | ??????????????????????### #### #### " # | | ?????????###??????????### ##### ## | | ?????????## ????##### @ *&&#### ##" ### | | ????????? # # #### ## ! " ## "###### | | ???????? ? # %Y ## !& %*& #######? | | ????????## % % ### & ####???? | | ????????###? [???? #### # ####?????? | | ????????????????????### ############?????? | | ?????????????????????### ###########???????? | | ?????????????????????###### ####???????????????? | | ??????????????????????###########????????????????? | | ?????????????????????????#######?????????????????? | | ?????????????????????????????????????????????????? | | ?????????????????????????????????????????????????? | | ?????????????????????????????????????????????????? | | ?????????????????????????????????????????????????? | | ?????????????????????????????????????????????????? | | ?????????????????????????????????????????????????? | | ?????????????????????????????????????????????????? | | ?????????????????????????????????????????????????? | | ?????????????????????????????????????????????????? | | ?????????????????????????????????????????????????? | | ?????????????????????????????????????????????????? | | ?????????????????????????????????????????????????? | | ?????????????????????????????????????????????????? | | | | | +----------------------------------------------------+ Best States ------------- Heat Dissipation 39 Energy Generation 10 Energy Capacity 250 Matter Stores 300 Matter Capacity 300 Sight Range 16 Terrain Scan Range 16 Terrain Scan Density 10 Evasion (%) 55 Recoil Reduction 2 Item Schematics ----------------- None Robot Schematics ------------------ None Fabricated ------------ Nothing Repaired ---------- Nothing Alien Tech Used ----------------- None Achievements -------------- None Challenges ------------ None Player 2 | -11 -10 -10 ---------- Run | Yrd Mat Sub Slots Evolved . | . . . Power . | . . . Propulsion . | . . . Utility . | . . . Weapon . | . . . Parts Attached 15 | . 13 2 Parts Lost 2 | . . 2 Damage Taken 418 | . 242 176 Core 69 | . 48 21 Player 2/Cogmind (%) 27 | . 36 17 Absorbed by Shields . | . . . Damage Inflicted 671 | . 389 282 Player 2/Cogmind (%) 37 | . 40 34 Combat Hostiles Destroyed 9 | . 6 3 Player 2/Cogmind (%) 45 | . 46 42 Game ------ Seed MachineForceCannon Manual? 0 Play Time 00:13:18 Cumulative 421.7 hours Start 2025.07.28 @ 01:59:30 End 2025.07.28 @ 02:12:18 Sessions 1 Manual Loads 0 Difficulty Rogue Special Mode AFD2020/Player2 Game No. 238 Rogue 238 Adventurer 0 Explorer 0 Win Type - Total 11 Types 10/0/1/0/0/0/0/0/0/0 Lore% 46 Gallery% 64 Achievement% 53 Wizard Run 0 Options --------- Layout 1 ASCII 0 Keyboard 0 Movement Numpad Keybinds 0 Fullscreen 1 Font 24/Smallcaps Map View 50x35 Zoom Use 0% Tactical HUD 1 Map Filters NONE Filters NONE Steam 1 RUN: 8711b03d-f469-4083-be66-5c9b843e1e4f